bitfinex-derivatives/quotes_SOLF0:USTF0_20250507
["timestamp","ask_amount","ask_price","bid_price","bid_amount"]
[1746577020304,30.18,147.48,147.44,5.79758384]
[1746577020510,30.1,147.47,147.44,5.79758384]
[1746577021010,30.1,147.48,147.44,5.79758384]
[1746577021406,30.18,147.52,147.44,5.79758384]
[1746577021613,30.18,147.52,147.45,2.1245]
[1746577021908,6.7784,147.54,147.51,6.7795]
[1746577022105,30.1,147.53,147.47,5.79758384]
[1746577022308,30.1,147.53,147.47,35.97758384]
[1746577022608,6.7787,147.53,147.5,6.7795]
[1746577022809,30.1,147.52,147.5,6.7795]
[1746577023214,30.1,147.52,147.47,35.97758384]
[1746577023413,30.1,147.52,147.47,30.18]
[1746577023710,30.1,147.52,147.49,6.7801]
[1746577023910,30.1,147.51,147.49,6.7801]
[1746577024417,6.7802,147.5,147.47,6.7809]
[1746577024915,6.7802,147.5,147.46,6.7816]
[1746577025116,6.7802,147.5,147.45,2.1245]
[1746577025412,6.7802,147.5,147.47,6.7811]
[1746577025916,6.7804,147.49,147.46,6.7815]
[1746577026214,30.1,147.51,147.42,2.0147]
[1746577026215,60.28,147.51,147.42,32.1947]
[1746577026416,6.7811,147.48,147.45,6.782]
[1746577026618,30.1,147.47,147.45,6.782]
[1746577028418,30.1,147.47,147.42,32.1947]
[1746577029019,30.1,147.47,147.46,6.7818]
[1746577029215,6.7802,147.5,147.42,32.1947]
[1746577029425,30.1,147.49,147.42,32.1947]
[1746577029718,30.1,147.49,147.47,6.7812]
[1746577032224,30.1,147.49,147.45,6.7819]
[1746577032815,30.1,147.49,147.44,6.7827]
[1746577033323,6.7814,147.47,147.44,6.7827]
[1746577035419,30.1,147.49,147.43,6.7828]
[1746577035620,30.1,147.49,147.42,30.18]
[1746577035821,30.1,147.49,147.4,2.13]
[1746577036022,6.7815,147.47,147.39,32.2363]
[1746577036223,6.7815,147.47,147.4,2.0878]
[1746577036423,30.1,147.49,147.4,2.0878]
[1746577036723,30.1,147.49,147.42,6.7835]
[1746577037026,30.1,147.49,147.4,2.0878]
[1746577037625,6.7821,147.46,147.43,6.7829]
[1746577037817,30.1,147.45,147.43,6.7829]
[1746577040726,30.1,147.45,147.44,6.7827]
[1746577042427,30.1,147.45,147.43,6.7829]
[1746577042628,30.1,147.45,147.4,2.0878]
[1746577042924,30.1,147.45,147.44,6.7827]
[1746577043129,30.1,147.46,147.4,2.0878]
[1746577043329,30.1,147.46,147.41,2.0518]
[1746577043627,30.1,147.46,147.44,6.7823]
[1746577043830,30.1,147.46,147.41,2.0518]
[1746577044127,30.1,147.46,147.45,6.7822]
[1746577044929,30.1,147.46,147.44,6.7825]
[1746577045131,30.1,147.46,147.41,2.0518]
[1746577045337,30.1,147.46,147.4,2.0878]
[1746577045832,30.1,147.46,147.4,7.88634904]
[1746577046336,6.7823,147.45,147.42,6.7833]
[1746577046636,30.1,147.46,147.4,7.88634904]
[1746577046934,36.882,147.46,147.43,6.7829]
[1746577048039,36.882,147.46,147.4,7.88634904]
[1746577048336,30.1,147.46,147.4,7.88634904]
[1746577048533,36.9613,147.48,147.45,6.782]
[1746577048742,30.1,147.47,147.4,7.88634904]
[1746577049839,30.1,147.47,147.45,6.782]
[1746577051339,30.1,147.47,147.46,6.7818]
[1746577051539,30.18,147.48,147.4,7.88634904]
[1746577051842,30.1,147.47,147.4,7.88634904]
[1746577052139,30.1,147.47,147.46,6.7818]
[1746577053540,36.8598,147.51,147.43,5.79854904]
[1746577053738,30.1,147.5,147.43,7.77814904]
[1746577054141,36.8802,147.5,147.46,6.7814]
[1746577054341,6.7802,147.5,147.43,1.9796]
[1746577054640,30.1,147.49,147.43,1.9796]
[1746577054842,36.8805,147.49,147.46,6.7816]
[1746577055840,6.7809,147.48,147.46,6.7816]
[1746577056237,30.1,147.49,147.46,6.7816]
[1746577056645,36.8807,147.49,147.46,6.7816]
[1746577057047,30.1,147.49,147.47,6.7813]
[1746577059449,30.1,147.49,147.48,6.7809]
[1746577059647,30.08,147.53,147.45,5.79854904]
[1746577060253,30.08,147.53,147.46,32.1101]
[1746577060548,30.1,147.52,147.46,32.1101]
[1746577061152,30.1,147.52,147.51,6.7792]
[1746577063641,30.08,147.53,147.51,6.7792]
[1746577063847,30.08,147.52,147.5,6.7797]
[1746577064050,30.08,147.52,147.46,32.1101]
[1746577064352,36.8591,147.52,147.49,6.7801]
[1746577065153,30.08,147.52,147.5,6.7799]
[1746577065754,36.8591,147.52,147.49,6.7802]
[1746577066054,30.08,147.52,147.46,32.1101]
[1746577066650,6.7797,147.51,147.46,32.1101]
[1746577066955,30.08,147.52,147.46,30.08]
[1746577067256,30.08,147.52,147.46,6.7815]
[1746577068557,30.08,147.52,147.43,32.0596]
[1746577069147,6.7807,147.49,147.43,32.0596]
[1746577069345,30.08,147.48,147.43,32.0596]
[1746577070359,36.8609,147.48,147.43,32.0596]
[1746577070758,30.08,147.48,147.43,32.0596]
[1746577070952,30.08,147.48,147.44,6.7824]
[1746577071254,36.8611,147.48,147.43,32.0596]
[1746577071556,36.8611,147.48,147.45,6.7822]
[1746577072952,36.8611,147.48,147.46,6.7818]
[1746577073153,30.08,147.48,147.43,32.0596]
[1746577073557,30.08,147.48,147.47,6.7813]
[1746577074555,36.8598,147.51,147.49,6.7803]
[1746577074756,30.08,147.53,147.45,5.79854904]
[1746577075153,30.08,147.52,147.45,5.79854904]
[1746577075359,30.08,147.52,147.5,6.7797]
[1746577076258,30.08,147.52,147.49,6.7802]
[1746577076659,36.8591,147.52,147.49,6.7802]
[1746577077059,36.8591,147.52,147.45,5.79854904]
[1746577077259,6.7795,147.51,147.45,5.79854904]
[1746577077653,6.7795,147.51,147.48,6.7806]
[1746577077860,6.7801,147.5,147.45,5.79854904]
[1746577078254,6.7801,147.5,147.48,6.7808]
[1746577078553,30.08,147.52,147.45,5.79854904]
[1746577079054,6.7795,147.51,147.45,5.79854904]
[1746577079558,6.7801,147.5,147.47,6.7811]
[1746577079759,30.08,147.52,147.44,2.0301]
[1746577080148,6.7798,147.51,147.48,6.7806]
[1746577080861,6.7798,147.51,147.49,6.7804]
[1746577081056,6.7798,147.51,147.44,2.0301]
[1746577081256,6.7801,147.5,147.44,2.0301]
[1746577081451,30.08,147.52,147.44,2.0301]
[1746577081660,6.7812,147.48,147.43,30.08]
[1746577081849,30.08,147.47,147.43,30.08]
[1746577082055,30.08,147.47,147.45,6.7821]
[1746577082555,36.8614,147.47,147.44,6.7825]
[1746577083360,36.8614,147.47,147.45,6.7822]
[1746577083559,36.8614,147.47,147.43,30.08]
[1746577084159,36.8614,147.47,147.44,6.7824]
[1746577084461,30.08,147.47,147.43,30.08]
[1746577084662,30.08,147.47,147.44,6.7823]
[1746577085159,36.8614,147.47,147.44,6.7823]
[1746577085360,30.08,147.47,147.45,6.7822]
[1746577085565,30.08,147.47,147.43,30.08]
[1746577085859,36.8613,147.47,147.43,30.08]
[1746577086059,36.8613,147.47,147.44,6.7823]
[1746577086459,6.7818,147.46,147.41,2.1664]
[1746577086658,6.7818,147.46,147.43,6.783]
[1746577086961,6.7818,147.46,147.41,2.1664]
[1746577086962,6.7823,147.45,147.41,2.1664]
[1746577087154,6.7823,147.45,147.41,6.7838]
[1746577087548,6.7823,147.45,147.42,6.7834]
[1746577087752,6.782,147.46,147.42,6.7834]
[1746577087958,30.08,147.47,147.42,6.7834]
[1746577088159,6.7825,147.45,147.42,6.7834]
[1746577089761,30.08,147.47,147.4,35.85854904]
[1746577090352,36.8618,147.47,147.43,6.7829]
[1746577090762,36.8618,147.47,147.41,2.1242]
[1746577091363,6.7819,147.46,147.41,2.1242]
[1746577091564,6.7819,147.46,147.43,6.7829]
[1746577092362,6.7826,147.45,147.42,6.7834]
[1746577094761,30.08,147.45,147.37,30.08]
[1746577096066,30.08,147.45,147.4,6.7843]
[1746577096265,30.08,147.45,147.37,30.08]
[1746577096457,30.08,147.45,147.38,5.79854904]
[1746577097266,36.8623,147.45,147.42,6.7833]
[1746577097658,36.8623,147.45,147.38,5.79854904]
[1746577097858,36.8623,147.45,147.42,6.7834]
[1746577098058,6.7823,147.45,147.38,5.79854904]
[1746577098254,6.7823,147.45,147.42,6.7832]
[1746577099169,6.7823,147.45,147.41,6.7839]
[1746577099469,30.08,147.47,147.38,5.79854904]
[1746577099764,30.08,147.47,147.37,30.08]
[1746577100268,1.22290065,147.46,147.39,6.7848]
[1746577100464,6.7839,147.42,147.39,6.7848]
[1746577100665,30.08,147.41,147.39,6.7848]
[1746577101269,30.08,147.41,147.36,32.168]
[1746577101970,36.8641,147.41,147.36,32.168]
[1746577102364,30.08,147.41,147.39,6.7848]
[1746577103364,36.8642,147.41,147.38,6.7853]
[1746577104967,36.8642,147.41,147.36,32.168]
[1746577105369,30.08,147.41,147.36,32.168]
[1746577105574,30.08,147.41,147.39,6.785]
[1746577106674,36.8642,147.41,147.39,6.785]
[1746577106873,30.08,147.41,147.39,6.785]
[1746577107373,30.08,147.41,147.38,6.7853]
[1746577108074,36.8644,147.41,147.38,6.7853]
[1746577108266,30.08,147.41,147.39,6.7849]
[1746577108570,30.08,147.41,147.33,30.06]
[1746577108775,6.7848,147.4,147.36,6.786]
[1746577108963,6.7848,147.4,147.34,5.79854904]
[1746577109375,6.7848,147.4,147.37,6.7859]
[1746577110773,6.7843,147.41,147.38,6.7855]
[1746577110973,30.08,147.44,147.37,5.79854904]
[1746577111173,30.06,147.43,147.37,5.79854904]
[1746577111373,30.06,147.43,147.41,6.7838]
[1746577111872,36.8629,147.44,147.41,6.7838]
[1746577112075,30.06,147.43,147.41,6.7838]
[1746577112475,36.8433,147.43,147.4,6.7844]
[1746577113173,6.7833,147.43,147.4,6.7844]
[1746577113375,30.06,147.42,147.4,6.7844]
[1746577116276,36.8437,147.42,147.39,6.7848]
[1746577117976,6.7841,147.41,147.38,8.9138]
[1746577118171,30.06,147.42,147.35,5.79854904]
[1746577118772,6.7848,147.4,147.37,6.7857]
[1746577119376,6.7843,147.41,147.37,6.7857]
[1746577119570,30.06,147.42,147.37,6.7857]
[1746577120271,6.7847,147.4,147.37,6.7857]
[1746577120977,30.06,147.42,147.35,5.79854904]
[1746577122980,30.06,147.42,147.41,6.7841]
[1746577123480,6.7833,147.43,147.41,6.7841]
[1746577123681,30.06,147.42,147.41,6.7841]
[1746577127781,60.14,147.44,147.42,6.7832]
[1746577129480,30.06,147.43,147.42,6.7832]
[1746577130385,30.06,147.43,147.41,6.7839]
[1746577132093,36.8432,147.43,147.4,6.7843]
[1746577134094,30.06,147.43,147.38,30.06]
[1746577134289,30.08,147.44,147.35,35.83854904]
[1746577134487,30.04,147.43,147.39,5.79854904]
[1746577134888,30.04,147.43,147.4,2.0137]
[1746577135494,30.04,147.43,147.42,6.7836]
[1746577135789,6.7825,147.45,147.4,2.0137]
[1746577135990,30.04,147.47,147.4,2.0137]
[1746577136194,30.04,147.44,147.4,2.0137]
[1746577136588,36.8229,147.44,147.41,6.7836]
[1746577137797,6.7832,147.43,147.41,6.7836]
[1746577137998,30.04,147.44,147.37,30.04]
[1746577138199,30.04,147.43,147.37,30.04]
[1746577138397,30.04,147.43,147.39,6.7846]
[1746577138597,30.04,147.43,147.37,30.04]
[1746577138890,36.8229,147.44,147.41,6.7837]
[1746577139293,6.7832,147.43,147.41,6.7837]
[1746577139494,6.7832,147.43,147.4,6.7843]
[1746577139794,30.04,147.44,147.37,30.04]
[1746577139992,36.8229,147.44,147.37,30.04]
[1746577141000,6.7832,147.43,147.37,30.04]
[1746577141800,30.04,147.44,147.37,30.04]
[1746577142200,30.04,147.44,147.42,6.7836]
[1746577142699,36.8228,147.44,147.42,6.7836]
[1746577143001,36.8228,147.44,147.41,6.7839]
[1746577146407,30.04,147.44,147.42,6.7835]
[1746577147406,36.8228,147.44,147.41,6.7839]
[1746577147606,30.04,147.44,147.38,5.79854904]
[1746577147908,6.7832,147.43,147.4,6.7843]
[1746577148309,30.04,147.44,147.38,5.79854904]
[1746577148501,6.7839,147.42,147.4,6.7845]
[1746577149209,6.7834,147.43,147.4,6.7845]
[1746577149408,6.7834,147.43,147.41,6.7841]
[1746577149611,30.02,147.44,147.38,5.79854904]
[1746577150107,30.04,147.45,147.38,5.79854904]
[1746577150307,30.02,147.44,147.39,4.1112]
[1746577150499,30.02,147.44,147.43,6.7829]
[1746577151805,30.02,147.44,147.42,6.7834]
[1746577152209,30.02,147.44,147.4,2.0876]
[1746577153408,30.02,147.44,147.43,6.7832]
[1746577153909,30.02,147.46,147.45,6.7822]
[1746577154109,30.02,147.46,147.41,35.83854904]
[1746577155309,30.02,147.46,147.4,2.0876]
[1746577156407,30.02,147.46,147.41,5.79854904]
[1746577156607,30.02,147.47,147.46,6.7817]
[1746577157211,30.02,147.47,147.42,30.04]
[1746577157608,36.8195,147.51,147.48,6.7808]
[1746577157813,30.02,147.5,147.48,6.7808]
[1746577159414,30.02,147.5,147.49,6.7804]
[1746577159812,30.04,147.51,147.49,6.7804]
[1746577160011,30.04,147.51,147.5,6.78]
[1746577160207,30.02,147.51,147.5,6.78]
[1746577163312,32.0759,147.54,147.51,6.7794]
[1746577163515,30.0,147.53,147.51,6.7794]
[1746577163715,30.04,147.54,147.47,5.79854904]
[1746577163919,30.02,147.57,147.47,9.79334904]
[1746577164210,36.7774,147.56,147.52,6.7788]
[1746577164409,30.0,147.56,147.52,6.7788]
[1746577164610,30.0,147.55,147.52,6.7788]
[1746577165008,30.0,147.54,147.53,6.7785]
[1746577166122,30.0,147.54,147.52,6.7789]
[1746577166820,30.0,147.54,147.53,6.7786]
[1746577167018,30.0,147.55,147.53,6.7786]
[1746577167823,30.0,147.54,147.52,6.7788]
[1746577169223,30.0,147.54,147.51,6.7793]
[1746577170324,30.0,147.54,147.52,6.7787]
[1746577171427,36.7782,147.54,147.51,6.7793]
[1746577171827,30.0,147.54,147.45,2.0681]
[1746577172029,30.0,147.54,147.48,29.98]
[1746577172421,30.0,147.54,147.49,6.7801]
[1746577172727,30.0,147.54,147.45,6.142]
[1746577172928,6.7803,147.5,147.46,6.7816]
[1746577173123,29.98,147.5,147.45,6.142]
[1746577173526,29.98,147.5,147.49,6.7804]
[1746577174230,29.98,147.5,147.48,6.7807]
[1746577174928,36.76,147.5,147.48,6.7807]
[1746577175130,36.76,147.5,147.47,6.7811]
[1746577175828,29.98,147.5,147.48,6.7807]
[1746577176026,29.98,147.5,147.45,6.142]
[1746577176330,29.98,147.5,147.46,6.7813]
[1746577176829,6.7806,147.49,147.45,6.142]
[1746577177025,29.98,147.5,147.47,6.781]
[1746577177227,29.98,147.5,147.45,6.142]
[1746577177427,36.7601,147.5,147.45,6.142]
[1746577177628,36.7601,147.5,147.47,6.7811]
[1746577178730,36.7601,147.5,147.48,6.7808]
[1746577179731,29.98,147.5,147.49,6.7804]
[1746577180231,36.7589,147.53,147.5,6.78]
[1746577180433,29.98,147.52,147.45,6.142]
[1746577181026,29.98,147.52,147.48,6.7806]
[1746577181531,6.7798,147.51,147.48,6.7806]
[1746577182627,29.98,147.52,147.45,2.0681]
[1746577182823,29.98,147.52,147.44,29.98]
[1746577183331,29.98,147.52,147.43,6.7829]
[1746577183536,1.2224962,147.51,147.43,6.7829]
[1746577183730,6.7816,147.47,147.43,6.7829]
[1746577184027,36.7616,147.47,147.43,6.7829]
[1746577184433,6.7818,147.46,147.43,6.7829]
[1746577184829,6.7818,147.46,147.43,36.7629]
[1746577186733,6.7818,147.46,147.43,6.7829]
[1746577189132,29.98,147.47,147.42,29.98]
[1746577189332,29.98,147.47,147.41,6.1303]
[1746577189727,6.783,147.44,147.41,6.1303]
[1746577189939,29.98,147.47,147.41,6.1303]
[1746577190235,29.98,147.47,147.45,6.7822]
[1746577190935,5.79854904,147.53,147.46,6.7816]
[1746577191136,1.22249085,147.52,147.44,29.98]
[1746577191628,29.96,147.51,147.44,29.98]
[1746577192137,29.96,147.51,147.5,6.78]
[1746577194333,6.7784,147.54,147.51,6.7791]
[1746577194536,29.96,147.53,147.48,29.98]
[1746577194935,2.1452,147.55,147.53,6.7785]
[1746577195233,29.96,147.54,147.48,29.98]
[1746577195638,35.77854904,147.56,147.54,6.7781]
[1746577195933,29.96,147.55,147.54,6.7781]
[1746577196539,35.77854904,147.56,147.55,6.7777]
[1746577196739,6.7765,147.58,147.48,29.98]
[1746577196943,1.22203088,147.57,147.48,29.98]
[1746577197241,29.96,147.56,147.54,6.7777]
[1746577198644,29.96,147.56,147.55,6.7777]
[1746577198843,29.96,147.56,147.48,29.98]
[1746577199138,29.94,147.59,147.55,6.7777]
[1746577199341,29.96,147.58,147.52,29.94]
[1746577199539,29.96,147.57,147.52,29.94]
[1746577199741,29.96,147.57,147.54,6.7778]
[1746577200146,6.7766,147.58,147.52,29.94]
[1746577200446,29.94,147.57,147.55,6.7776]
[1746577200639,29.94,147.57,147.52,29.94]
[1746577200844,29.94,147.57,147.54,6.7778]
[1746577201145,29.94,147.57,147.52,29.94]
[1746577201347,29.94,147.59,147.52,29.94]
[1746577201647,6.7775,147.56,147.52,29.94]
[1746577201850,6.7775,147.56,147.52,36.7188]
[1746577202344,29.94,147.55,147.47,6.2002]
[1746577202650,29.94,147.55,147.48,29.94]
[1746577203045,36.7179,147.55,147.48,29.94]
[1746577203245,29.94,147.55,147.48,29.94]
[1746577203448,29.94,147.55,147.53,6.7783]
[1746577203850,29.94,147.55,147.52,29.94]
[1746577204157,29.94,147.55,147.53,6.7782]
[1746577204646,29.94,147.55,147.52,29.94]
[1746577205346,6.7785,147.54,147.5,6.7796]
[1746577205547,6.7785,147.54,147.47,6.2002]
[1746577205548,29.94,147.55,147.49,29.94]
[1746577205753,6.7788,147.53,147.49,36.7204]
[1746577205950,35.73854904,147.58,147.49,36.7204]
[1746577206150,29.94,147.57,147.49,29.94]
[1746577206348,6.7778,147.55,147.49,36.7203]
[1746577206548,29.94,147.54,147.49,36.7203]
[1746577206748,29.94,147.54,147.49,29.94]
[1746577207053,29.94,147.54,147.49,36.7203]
[1746577207255,29.94,147.54,147.49,29.94]
[1746577207954,36.7183,147.54,147.48,29.94]
[1746577208148,29.94,147.54,147.48,29.94]
[1746577208349,29.94,147.54,147.5,6.7797]
[1746577208851,29.94,147.54,147.51,6.7795]
[1746577209358,29.94,147.54,147.48,29.94]
[1746577209653,29.94,147.54,147.51,6.7793]
[1746577209863,29.94,147.54,147.48,29.94]
[1746577210156,29.94,147.57,147.48,29.94]
[1746577210346,59.88,147.57,147.48,29.94]
[1746577210548,29.94,147.57,147.48,29.94]
[1746577211257,29.94,147.57,147.5,5.79854904]
[1746577211452,29.94,147.6,147.5,35.73854904]
[1746577211651,29.94,147.59,147.5,35.73854904]
[1746577211856,35.73854904,147.59,147.5,29.94]
[1746577212157,35.73854904,147.59,147.48,29.94]
[1746577212456,6.7772,147.56,147.48,29.94]
[1746577212656,29.94,147.55,147.48,29.94]
[1746577212852,36.7179,147.55,147.51,6.7791]
[1746577213248,29.94,147.55,147.5,29.94]
[1746577213454,29.94,147.6,147.5,29.94]
[1746577213654,29.94,147.59,147.5,35.73854904]
[1746577214057,6.7766,147.58,147.54,6.7778]
[1746577215855,36.716,147.59,147.55,6.7776]
[1746577216059,29.94,147.59,147.5,35.73854904]
[1746577216264,2.1812,147.62,147.51,29.94]
[1746577216560,29.94,147.6,147.51,29.94]
[1746577216761,36.7157,147.6,147.52,6.2622]
[1746577217066,29.94,147.6,147.52,6.2622]
[1746577217360,6.7762,147.59,147.54,6.7779]
[1746577217560,29.94,147.6,147.54,6.7779]
[1746577217760,29.94,147.6,147.52,6.2622]
[1746577217962,6.777,147.57,147.52,6.2622]
[1746577218865,29.94,147.56,147.52,32.0535]
[1746577219163,36.718,147.55,147.52,32.0535]
[1746577219360,29.94,147.55,147.49,29.94]
[1746577219768,6.7784,147.54,147.5,6.7798]
[1746577219963,6.7784,147.54,147.49,29.94]
[1746577220967,6.7784,147.54,147.51,6.7794]
[1746577222364,36.7178,147.55,147.51,6.7794]
[1746577222665,36.7178,147.55,147.52,6.779]
[1746577222868,29.94,147.55,147.52,6.779]
[1746577223067,29.94,147.55,147.53,6.7783]
[1746577223566,29.92,147.61,147.55,6.7775]
[1746577224268,29.92,147.61,147.54,2.0055]
[1746577224566,31.27492175,147.61,147.52,29.94]
[1746577224769,1.22175981,147.6,147.52,29.94]
[1746577225165,29.92,147.59,147.52,29.94]
[1746577225762,29.92,147.59,147.53,2.0464]
[1746577226166,29.92,147.59,147.57,6.7764]
[1746577226669,1.35492175,147.61,147.54,2.0328]
[1746577226670,1.35492175,147.61,147.58,6.7763]
[1746577226863,29.92,147.6,147.54,2.0328]
[1746577227269,29.92,147.6,147.59,6.7758]
[1746577227969,29.92,147.6,147.58,6.7761]
[1746577228363,1.35492175,147.61,147.58,6.7761]
[1746577228566,29.92,147.59,147.58,6.7761]
[1746577229272,29.92,147.59,147.57,6.7765]
[1746577229462,29.92,147.59,147.54,2.0328]
[1746577229768,36.6961,147.59,147.54,2.0328]
[1746577229972,36.6961,147.59,147.55,6.7772]
[1746577230268,36.6961,147.59,147.54,2.0328]
[1746577230569,29.92,147.59,147.54,2.0328]
[1746577231766,36.6959,147.59,147.56,6.7769]
[1746577231966,36.6959,147.59,147.54,2.0328]
[1746577232673,6.7755,147.6,147.54,2.0328]
[1746577232867,29.92,147.59,147.57,6.7764]
[1746577233171,29.92,147.59,147.54,2.0328]
[1746577234470,29.92,147.59,147.58,6.7763]
[1746577234663,29.92,147.59,147.56,29.92]
[1746577235072,1.35492175,147.61,147.56,29.92]
[1746577235381,29.92,147.6,147.56,29.92]
[1746577235569,29.92,147.6,147.58,6.776]
[1746577236177,36.6954,147.6,147.58,6.776]
[1746577236382,36.6954,147.6,147.57,6.7765]
[1746577237278,29.92,147.6,147.57,6.7765]
[1746577237475,29.92,147.6,147.56,36.697]
[1746577237878,6.7759,147.59,147.56,36.697]
[1746577238075,29.92,147.6,147.56,29.92]
[1746577238488,6.7762,147.59,147.56,29.92]
[1746577238874,6.7762,147.59,147.56,36.6971]
[1746577240978,6.7763,147.58,147.56,36.6971]
[1746577241378,29.92,147.6,147.56,36.6971]
[1746577241681,6.776,147.59,147.56,36.6971]
[1746577243987,29.92,147.6,147.56,29.92]
[1746577243988,6.7764,147.58,147.56,29.92]
[1746577244173,29.92,147.6,147.56,29.92]
[1746577244377,29.92,147.6,147.52,29.92]
[1746577245083,6.7774,147.56,147.53,6.7783]
[1746577245381,36.6974,147.56,147.53,6.7783]
[1746577245581,29.92,147.56,147.52,29.92]
[1746577245883,29.92,147.56,147.53,6.7785]
[1746577246288,29.92,147.56,147.52,29.92]
[1746577246580,29.92,147.56,147.55,6.7777]
[1746577250086,29.92,147.56,147.54,6.7779]
[1746577250789,29.92,147.56,147.55,6.7777]
[1746577251088,29.92,147.56,147.52,29.92]
[1746577252091,36.6972,147.56,147.54,6.7779]
[1746577252883,29.92,147.56,147.54,6.7779]
[1746577253592,29.92,147.56,147.55,6.7777]
[1746577254594,6.7765,147.58,147.55,6.7777]
[1746577254892,29.92,147.57,147.55,6.7777]
[1746577256393,29.92,147.57,147.54,6.7781]
[1746577256594,29.92,147.57,147.53,2.0314]
[1746577257495,29.92,147.57,147.55,6.7774]
[1746577257794,29.92,147.57,147.53,2.0314]
[1746577257996,29.92,147.57,147.56,6.7772]
[1746577258195,29.92,147.59,147.53,4.0856]
[1746577258488,1.35492175,147.61,147.53,4.0856]
[1746577258994,29.92,147.6,147.53,4.0856]
[1746577259199,1.35492175,147.61,147.58,6.776]
[1746577259400,31.27492175,147.61,147.58,6.776]
[1746577260191,0.24522,147.63,147.56,35.69854904]
[1746577260391,0.24522,147.63,147.57,2.0612]
[1746577260896,30.50522,147.63,147.57,2.0612]
[1746577261396,37.27922,147.63,147.57,2.0612]
[1746577261592,30.50522,147.63,147.57,2.0612]
[1746577261787,30.50522,147.63,147.6,6.7751]
[1746577262196,6.7747,147.62,147.58,6.7761]
[1746577262395,30.50522,147.63,147.56,29.9]
[1746577262695,6.7755,147.6,147.56,29.9]
[1746577262998,30.42,147.59,147.54,29.9]
[1746577263493,6.7768,147.57,147.52,6.779]
[1746577263689,6.7768,147.57,147.51,29.9]
[1746577263887,6.7763,147.58,147.51,29.9]
[1746577264198,30.72,147.6,147.51,60.62]
[1746577264399,30.72,147.6,147.57,6.7764]
[1746577264599,30.72,147.6,147.55,29.9]
[1746577264896,37.4958,147.6,147.56,6.7769]
[1746577265196,30.72,147.6,147.56,6.7769]
[1746577265600,37.4955,147.6,147.56,6.7769]
[1746577265997,37.4955,147.6,147.57,6.7766]
[1746577266802,6.7759,147.59,147.56,6.7771]
[1746577267599,37.4955,147.6,147.56,6.7771]
[1746577268403,31.42,147.67,147.55,29.9]
[1746577268599,32.84131137,147.66,147.55,34.0855]
[1746577268802,31.62,147.66,147.55,34.0855]
[1746577269000,5.79854904,147.65,147.55,29.9]
[1746577269507,6.7755,147.6,147.56,6.7769]
[1746577269805,31.68,147.59,147.56,6.7769]
[1746577271701,32.82,147.64,147.55,29.9]
[1746577272000,32.82,147.64,147.57,5.79854904]
[1746577272197,36.52099,147.68,147.57,5.79854904]
[1746577272402,35.14126342,147.67,147.58,2.0736]